{"text_format":"3","workbook":"xlsx","n_sheets":1,"sheets":["Hoja2"],"read":"whole","date_system":"1900"}

{"sheet":"Hoja2","index":0,"n_rows":24,"n_cols":6,"rows_kept":24,"merged":[[1,1,1,5],[4,1,4,5],[13,1,13,2],[14,1,14,2],[16,1,16,2]]}
[]
[null,"ANEXO 2- FORMULARIO DE PRECIOS Y CANTIDADES"]
[]
[]
[null,"ALMACENAMIENTO DE ARCHIVO FISICO Y MEDIOS MAGNETICOS"]
[null,"DESCRIPCIÓN","UNIDADES PROMEDIO MENSUAL","VALOR UNITARIO","IVA ","TOTAL "]
[null,"Valor mensual de Almacenamiento y Custodia de cada caja de referencia X300",1983,null,{"$f":"+D7*19%","v":0},{"$f":"+(D7+E7)*C7","v":0}]
[null,"Valor mensual de almacenamiento y custodia de cada contenedor de medios magnéticos (incluye otros elementos de cierre de seguridad como precintos).",10,null,{"$f":"+D8*19%","v":0},{"$f":"+(D8+E8)*C8","v":0}]
[null,"Valor consulta por cada caja en las instalaciones de la ESU",20,null,{"$f":"+D9*19%","v":0},{"$f":"+(D9+E9)*C9","v":0}]
[null,"Valor consulta por cada caja en las instalaciones del proveedor.",20,null,{"$f":"+D10*19%","v":0},{"$f":"+(D10+E10)*C10","v":0}]
[null,"Valor del re-archivo de cajas.",20,null,{"$f":"+D11*19%","v":0},{"$f":"+(D11+E11)*C11","v":0}]
[null,"Valor transporte de cajas en préstamo por un rango de 1 a 20",20,null,{"$f":"+D12*19%","v":0},{"$f":"+(D12+E12)*C12","v":0}]
[null,"Valor transporte de contenedores de medios magnéticos para consulta en las oficinas de la ESU independiente del número de contenedores",1,null,{"$f":"+D13*19%","v":0},{"$f":"+(D13+E13)*C13","v":0}]
[null,"Valor promedio mensual",null,{"$f":"SUM(D7:D13)","v":0},{"$f":"SUM(E7:E13)","v":0},{"$f":"SUM(F7:F13)","v":0}]
[null,"COSTO X 8 MESES",null,{"$f":"+D14*8","v":0},{"$f":"+E14*8","v":0},{"$f":"+F14*8","v":0}]
[null,"Traslado de cajas una sola vez",{"v":1983,"d":"1,983"}]
[null,"TOTAL",null,{"$f":"+D15+D16","v":0},{"$f":"+E15+E16","v":0},{"$f":"+F15+F16","v":0}]
[]
[]
[]
[]
[]
[]
[null,"Firma Representante legal"]